bitfinex/quotes_SOLUSD_20250719
["timestamp","ask_amount","ask_price","bid_price","bid_amount"]
[1752922798832,0.06,177.34,177.33,166.856]
[1752922799023,2.36724769,177.34,177.33,166.856]
[1752922800233,0.06,177.34,177.33,166.856]
[1752922800537,0.06,177.34,177.33,161.22]
[1752922801236,0.06,177.34,177.33,189.52724769]
[1752922801738,0.06,177.34,177.33,195.16324769]
[1752922802440,0.06,177.34,177.33,169.16324769]
[1752922802732,0.06,177.38,177.37,26.0]
[1752922802910,0.06,177.38,177.37,65.6637932]
[1752922803117,0.06,177.38,177.37,66.3537932]
[1752922803416,0.06,177.38,177.37,100.1837932]
[1752922803611,0.06,177.38,177.37,108.12704089]
[1752922803843,0.06,177.38,177.37,116.18484089]
[1752922804026,0.06,177.38,177.37,115.62104769]
[1752922804745,0.06,177.38,177.37,113.3138]
[1752922804921,2.36724769,177.38,177.37,99.62]
[1752922808051,2.36724769,177.38,177.37,98.93]
[1752922808230,2.36724769,177.38,177.37,99.62]
[1752922808624,2.36724769,177.38,177.37,187.16]
[1752922813752,0.06,177.38,177.37,187.16]
[1752922813964,0.06,177.48,177.45,26.0]
[1752922814246,0.06,177.48,177.47,2.30724769]
[1752922814453,0.06,177.48,177.47,162.77724769]
[1752922814636,0.06,177.48,177.47,163.46724769]
[1752922815433,0.06,177.48,177.47,171.19184917]
[1752922817160,0.06,177.48,177.47,172.48037749]
[1752922818467,0.06,177.48,177.47,164.75577601]
[1752922818844,0.06,177.48,177.47,313.45577601]
[1752922821250,0.06,177.48,177.47,270.76]
[1752922821438,3.65577601,177.48,177.47,309.15]
[1752922821755,3.65577601,177.48,177.47,335.15]
[1752922822260,3.65577601,177.48,177.47,335.84]
[1752922822849,0.06,177.48,177.47,335.84]
[1752922823250,0.06,177.48,177.47,187.14]
[1752922824638,3.65577601,177.48,177.47,186.45]
[1752922825143,3.65577601,177.48,177.47,187.14]
[1752922828864,3.65577601,177.48,177.47,186.45]
[1752922829766,3.65577601,177.48,177.47,187.16]
[1752922832367,3.65577601,177.48,177.47,186.45]
[1752922832749,3.65577601,177.48,177.47,187.16]
[1752922834456,0.06,177.48,177.47,187.16]
[1752922836660,3.65577601,177.48,177.47,186.43]
[1752922838357,3.65577601,177.48,177.47,126.6]
[1752922838358,3.77577601,177.48,177.47,126.6]
[1752922838564,13.0059897,177.48,177.47,87.54]
[1752922838764,13.0059897,177.48,177.46,39.06]
[1752922839051,3.71577601,177.47,177.46,39.06]
[1752922840986,9.35053117,177.47,177.46,39.06]
[1752922841176,3.59577601,177.47,177.46,39.06]
[1752922841880,0.06,177.48,177.46,39.06]
[1752922842062,0.06,177.48,177.47,0.71]
[1752922842263,3.65577601,177.48,177.47,0.71]
[1752922842799,0.06,177.48,177.47,88.25]
[1752922842948,0.06,177.48,177.47,126.18925152]
[1752922843152,0.06,177.48,177.47,125.62577601]
[1752922843349,0.06,177.52,177.47,125.62577601]
[1752922843553,0.06,177.52,177.49,37.37577601]
[1752922843849,0.06,177.52,177.5,65.62338028]
[1752922844049,0.06,177.52,177.5,66.33338028]
[1752922844278,0.06,177.52,177.51,0.71]
[1752922845861,0.06,177.52,177.51,1.27334854]
[1752922846380,0.06,177.53,177.51,40.19572455]
[1752922846558,0.06,177.53,177.52,39.1]
[1752922846757,3.65577601,177.53,177.51,59.78]
[1752922847055,0.06,177.53,177.52,39.12]
[1752922848182,3.65577601,177.53,177.52,39.12]
[1752922852065,3.65577601,177.53,177.52,39.83]
[1752922852670,3.65577601,177.53,177.52,39.12]
[1752922855885,3.65577601,177.53,177.52,126.72]
[1752922856090,3.65577601,177.53,177.52,127.43]
[1752922862200,3.65577601,177.53,177.52,126.72]
[1752922862570,3.65577601,177.53,177.52,127.43]
[1752922863594,0.06,177.53,177.52,127.43]
[1752922864176,0.06,177.53,177.52,161.21]
[1752922864991,0.06,177.53,177.52,166.846]
[1752922865180,0.06,177.53,177.52,170.44177601]
[1752922865890,0.06,177.53,177.52,176.72567601]
[1752922866080,0.06,177.53,177.52,171.08967601]
[1752922867780,0.06,177.54,177.53,121.32]
[1752922867980,0.06,177.54,177.53,125.62577601]
[1752922868175,0.06,177.54,177.53,127.23307601]
[1752922873583,0.1,177.55,177.54,147.26]
[1752922873785,0.1,177.55,177.54,187.07]
[1752922875586,0.1,177.55,177.54,161.07]
[1752922876202,0.1,177.55,177.54,164.66577601]
[1752922878980,0.06,177.56,177.55,121.16]
[1752922879215,0.06,177.56,177.55,121.87]
[1752922879387,0.06,177.56,177.55,121.16]
[1752922879595,0.06,177.56,177.55,121.87]
[1752922880286,0.1628231,177.56,177.55,121.87]
[1752922880486,0.1628231,177.56,177.55,125.46577601]
[1752922882578,0.1628231,177.56,177.55,274.16577601]
[1752922887299,0.1628231,177.56,177.55,313.22577601]
[1752922888509,0.10674449,177.58,177.57,146.82486473]
[1752922888710,0.10674449,177.58,177.57,185.88486473]
[1752922889110,3.7025205,177.58,177.57,185.88486473]
[1752922889704,0.10674449,177.58,177.57,185.88486473]
[1752922890190,3.7025205,177.58,177.57,185.88486473]
[1752922891411,0.10674449,177.58,177.57,185.88486473]
[1752922891614,0.10674449,177.58,177.57,186.56486473]
[1752922892206,0.10674449,177.58,177.57,185.88486473]
[1752922893729,3.9425205,177.58,177.57,185.88486473]
[1752922894821,0.10674449,177.58,177.57,185.88486473]
[1752922895028,3.7025205,177.58,177.57,185.88486473]
[1752922895324,0.10674449,177.58,177.57,185.88486473]
[1752922895527,3.7025205,177.58,177.57,185.88486473]
[1752922898636,3.7025205,177.58,177.57,186.56486473]
[1752922899038,3.7025205,177.58,177.57,185.88486473]
[1752922899439,0.10674449,177.58,177.57,186.56486473]
[1752922899596,3.7025205,177.58,177.57,186.56486473]
[1752922899798,3.59577601,177.58,177.57,186.56486473]
[1752922900016,3.59577601,177.58,177.57,185.88486473]
[1752922900327,3.71764801,177.58,177.57,185.88486473]
[1752922903854,3.95764801,177.58,177.57,185.88486473]
[1752922905230,3.71764801,177.58,177.57,185.88486473]
[1752922905630,3.71764801,177.58,177.57,186.56486473]
[1752922906597,3.71764801,177.58,177.57,185.88486473]
[1752922906731,3.71764801,177.58,177.57,186.56486473]
[1752922907128,0.121872,177.58,177.57,186.56486473]
[1752922908439,0.121872,177.58,177.57,192.20086473]
[1752922912259,0.121872,177.58,177.57,190.16064074]
[1752922914731,0.121872,177.58,177.57,186.56486473]
[1752922914963,0.121872,177.58,177.57,190.16064074]
[1752922915955,0.11787949,177.59,177.58,146.70299273]
[1752922916263,0.11787949,177.59,177.58,190.01876874]
[1752922919455,0.11787949,177.59,177.58,164.01876874]
[1752922919767,0.06,177.6,177.58,164.01876874]
[1752922919965,0.06,177.6,177.59,99.38309476]
[1752922920136,0.06,177.6,177.59,100.06309476]
[1752922920441,0.17149259,177.6,177.59,100.06309476]
[1752922923763,0.17149259,177.6,177.59,99.38309476]
[1752922923968,0.17149259,177.6,177.59,186.30608749]
[1752922924154,0.17149259,177.6,177.59,185.74299273]
[1752922925070,3.7672686,177.6,177.59,185.74299273]
[1752922926550,0.17149259,177.6,177.59,185.74299273]
[1752922927771,0.17149259,177.6,177.59,186.42299273]
[1752922928939,0.17149259,177.6,177.59,192.05899273]
[1752922931669,0.17149259,177.6,177.59,146.70299273]
[1752922931871,2.47095028,177.6,177.59,185.74299273]
[1752922932546,0.17149259,177.6,177.59,185.74299273]
[1752922932769,2.47095028,177.6,177.59,185.74299273]
[1752922932974,2.47095028,177.6,177.59,186.42299273]
[1752922933154,2.47095028,177.6,177.59,192.05899273]
[1752922933350,2.47095028,177.6,177.59,185.74299273]
[1752922935756,0.17149259,177.6,177.59,186.42299273]
[1752922936993,0.17149259,177.6,177.59,185.74299273]
[1752922936994,2.47095028,177.6,177.59,185.74299273]
[1752922938482,2.47095028,177.6,177.59,191.37899273]
[1752922939276,0.17149259,177.6,177.59,192.05899273]
[1752922939676,0.06,177.6,177.59,192.05899273]
[1752922943480,0.06,177.6,177.59,186.42299273]
[1752922944157,0.06,177.6,177.59,188.72245042]
[1752922944374,0.06,177.6,177.59,186.42299273]
[1752922945582,0.06,177.6,177.59,185.74299273]
[1752922945788,0.06,177.6,177.59,186.42299273]
[1752922947666,0.06,177.6,177.59,185.74299273]
[1752922950565,0.06,177.6,177.59,186.44299273]
[1752922950971,0.06,177.6,177.59,192.07899273]
[1752922952174,0.06,177.6,177.59,186.44299273]
[1752922952482,0.06,177.6,177.59,177.2276767]
[1752922952682,0.06,177.6,177.59,179.52713439]
[1752922953492,0.06,177.62,177.61,146.64299273]
[1752922953670,0.06,177.62,177.61,191.31899273]
[1752922953864,0.06,177.62,177.61,192.01899273]
[1752922954966,0.06,177.62,177.61,186.38299273]
[1752922955783,0.06,177.62,177.61,192.01899273]
[1752922958868,0.06,177.62,177.61,186.38299273]
[1752922959074,0.06,177.62,177.61,192.01899273]
[1752922959282,0.06,177.62,177.61,186.38299273]
[1752922962380,0.06,177.62,177.61,192.01899273]
[1752922966696,0.06,177.62,177.61,194.31845042]
[1752922966889,0.06,177.62,177.61,188.68245042]
[1752922968506,0.06,177.62,177.61,186.38299273]
[1752922969083,0.06,177.62,177.61,192.01899273]
[1752922969280,0.06,177.62,177.61,186.38299273]
[1752922971205,2.35945769,177.64,177.63,33.78]
[1752922971501,2.35945769,177.64,177.63,159.62299273]
[1752922971673,2.35945769,177.64,177.63,165.95899273]
[1752922971674,0.06,177.64,177.63,165.95899273]
[1752922972290,0.06,177.64,177.63,160.32299273]
[1752922985906,0.06,177.64,177.63,186.32299273]
[1752922989094,0.06,177.64,177.63,186.34299273]
[1752922994904,0.06,177.64,177.63,191.97899273]
[1752923008011,2.35945769,177.64,177.63,191.97899273]
[1752923008221,0.06,177.64,177.63,186.34299273]
[1752923008423,2.35945769,177.64,177.63,186.34299273]
[1752923008635,0.06,177.64,177.63,186.34299273]
[1752923010438,0.06,177.64,177.63,191.97899273]
[1752923011337,2.35945769,177.64,177.63,185.62299273]
[1752923012734,2.35945769,177.64,177.63,186.28299273]
[1752923013942,2.35945769,177.64,177.63,185.62299273]
[1752923014114,2.35945769,177.64,177.63,159.60299273]
[1752923014115,2.59945769,177.64,177.63,159.60299273]
[1752923014515,2.35945769,177.64,177.63,159.60299273]
[1752923015128,2.35945769,177.64,177.63,160.26299273]
[1752923016821,0.06,177.64,177.63,160.26299273]
[1752923017147,2.35945769,177.64,177.63,160.26299273]
[1752923018921,2.35945769,177.64,177.63,165.89899273]
[1752923020133,0.06,177.64,177.63,165.89899273]
[1752923020448,0.06,177.64,177.63,160.26299273]
[1752923021450,0.06,177.68,177.64,92.37899273]
[1752923021625,2.29945769,177.66,177.65,78.436]
[1752923021819,2.29945769,177.66,177.65,79.096]
[1752923022431,2.53945769,177.66,177.65,33.78]
[1752923022745,11.73728845,177.66,177.65,72.8]
[1752923022927,17.36601748,177.66,177.65,39.02]
[1752923024147,11.73728845,177.66,177.65,39.02]
[1752923025447,2.29945769,177.66,177.65,37.02]
[1752923025761,11.49728845,177.66,177.65,70.8]
[1752923025940,11.73728845,177.66,177.65,70.8]
[1752923027130,11.49728845,177.66,177.65,70.8]
[1752923027424,11.49728845,177.66,177.65,157.54299273]
[1752923028852,2.29945769,177.66,177.65,157.54299273]
[1752923029724,8.16818672,177.66,177.65,157.54299273]
[1752923029939,7.92818672,177.66,177.65,157.54299273]
[1752923032840,2.29945769,177.66,177.65,157.54299273]
[1752923035355,5.62853274,177.67,177.65,157.54299273]
[1752923035542,2.29945769,177.66,177.65,157.54299273]
[1752923037557,2.29945769,177.66,177.65,120.52299273]
[1752923037757,2.29945769,177.66,177.65,159.54299273]
[1752923038259,0.06,177.68,177.67,26.0]
[1752923038446,2.35945769,177.68,177.67,65.02]
[1752923038756,2.35945769,177.68,177.67,65.69]
[1752923041254,0.06,177.68,177.67,65.69]
[1752923041568,2.35945769,177.68,177.67,65.69]
[1752923041946,2.35945769,177.68,177.67,65.02]
[1752923042650,2.59945769,177.68,177.67,65.02]
[1752923043056,2.35945769,177.68,177.67,65.02]
[1752923043450,2.35945769,177.68,177.67,99.47]
[1752923044473,0.06,177.68,177.67,99.47]
[1752923044771,2.35945769,177.68,177.67,99.47]
[1752923048263,2.35945769,177.68,177.67,186.21299273]
[1752923052266,0.06,177.68,177.67,186.21299273]
[1752923052563,2.35945769,177.68,177.67,186.21299273]
[1752923060175,2.35945769,177.68,177.67,191.84899273]
[1752923061771,2.35945769,177.68,177.67,186.21299273]
[1752923062772,0.06,177.68,177.67,186.21299273]
[1752923062955,2.35945769,177.68,177.67,186.21299273]
[1752923065580,0.06,177.68,177.67,186.21299273]
[1752923065775,2.35945769,177.68,177.67,186.21299273]
[1752923069778,0.06,177.68,177.67,186.21299273]
[1752923069973,2.35945769,177.68,177.67,186.21299273]
[1752923070494,2.35945769,177.68,177.67,191.84899273]
[1752923070984,0.06,177.68,177.67,191.84899273]
[1752923071158,2.35945769,177.68,177.67,191.84899273]
[1752923071757,0.06,177.68,177.67,191.84899273]
[1752923071963,2.35945769,177.68,177.67,186.21299273]
[1752923072170,0.06,177.68,177.67,99.47]
[1752923072687,2.35945769,177.68,177.67,99.47]
[1752923073479,0.06,177.68,177.67,99.47]
[1752923075697,2.35945769,177.68,177.67,99.47]
[1752923077704,2.35945769,177.68,177.67,186.21299273]
[1752923079786,0.06,177.68,177.67,186.21299273]
[1752923079973,2.35945769,177.68,177.67,186.21299273]
[1752923080672,0.06,177.68,177.67,186.21299273]
[1752923081583,0.06,177.68,177.67,191.83699273]
[1752923083393,2.29945769,177.71,177.7,33.78]
[1752923083597,2.35945769,177.72,177.7,160.20299273]
[1752923083801,9.19783076,177.84,177.74,33.78]
[1752923083802,0.3,177.81,177.74,33.78]
[1752923084096,5.62429696,177.8,177.75,39.74]
[1752923084283,2.29945769,177.76,177.74,120.46299273]
[1752923084480,2.29945769,177.75,177.74,33.78]
[1752923084678,2.29945769,177.75,177.74,34.5]
[1752923085576,2.29945769,177.75,177.74,73.54]
[1752923085772,2.29945769,177.75,177.74,33.78]
[1752923086006,5.62619556,177.74,177.73,112.68299273]
[1752923086219,8.22565325,177.74,177.73,112.68299273]
[1752923086374,2.29945769,177.74,177.73,112.68299273]
[1752923086728,2.59945769,177.74,177.71,120.46299273]
[1752923086886,2.29945769,177.72,177.71,120.46299273]
[1752923087091,2.29945769,177.72,177.71,159.48299273]
[1752923087981,7.9262864,177.72,177.71,159.48299273]
[1752923088401,8.2262864,177.72,177.71,159.48299273]
[1752923089401,8.2262864,177.72,177.71,72.8]
[1752923089600,8.2262864,177.72,177.67,121.18299273]
[1752923089804,2.29945769,177.68,177.67,120.46299273]
[1752923089989,2.29945769,177.68,177.67,160.22299273]
[1752923091096,3.59073332,177.68,177.67,160.22299273]
[1752923091581,9.21882877,177.68,177.67,86.68299273]
[1752923091776,13.10956209,177.68,177.65,0.03]
[1752923091981,7.18146664,177.66,177.65,0.03]
[1752923092176,7.18146664,177.66,177.65,39.07]
[1752923092381,7.48146664,177.66,177.64,39.04]
[1752923092585,3.59073332,177.65,177.64,39.04]
[1752923093206,3.89073332,177.65,177.64,39.04]
[1752923093416,9.51977919,177.65,177.62,0.03]
[1752923093591,9.51977919,177.65,177.63,39.04]
[1752923093998,3.59073332,177.64,177.63,39.04]
[1752923094195,3.89073332,177.64,177.63,39.04]
[1752923094912,3.59073332,177.64,177.63,39.04]
[1752923095398,9.52018142,177.64,177.62,0.03]
[1752923095718,3.89073332,177.63,177.62,0.03]
[1752923097704,9.52041299,177.63,177.62,0.03]
[1752923099292,9.22041299,177.63,177.62,0.03]
[1752923101736,9.52041299,177.63,177.62,0.03]
[1752923102015,5.92967967,177.63,177.62,0.03]
[1752923102218,9.22041299,177.63,177.62,0.03]
[1752923103037,5.6294405,177.64,177.62,0.03]
[1752923103232,3.59073332,177.63,177.62,0.03]
[1752923105607,0.3,177.68,177.62,39.77]
[1752923105816,3.59073332,177.63,177.62,39.09]
[1752923106206,3.59073332,177.64,177.62,39.09]
[1752923106511,3.59073332,177.64,177.63,0.68]
[1752923107306,3.59073332,177.64,177.63,87.36299273]
[1752923107704,5.62842878,177.67,177.63,87.36299273]
[1752923107901,5.62842878,177.67,177.64,39.04]
[1752923108113,3.59073332,177.65,177.64,39.04]
[1752923109728,3.59073332,177.65,177.64,39.72]
[1752923111234,3.59073332,177.65,177.64,73.5]
[1752923111436,3.59073332,177.65,177.64,39.72]
[1752923112031,3.59073332,177.65,177.64,39.04]
[1752923113748,9.51977919,177.65,177.63,86.68299273]
[1752923113947,9.51977919,177.65,177.62,0.03]
[1752923113948,3.89073332,177.64,177.62,0.03]
[1752923114150,3.59073332,177.63,177.62,0.03]
[1752923114317,3.59073332,177.62,177.6,0.03]
[1752923114523,3.59073332,177.61,177.6,0.03]
[1752923114720,3.89073332,177.61,177.6,0.03]
[1752923115640,3.59073332,177.61,177.6,0.03]
[1752923115853,9.22104692,177.61,177.6,0.03]
[1752923116918,3.59073332,177.61,177.6,0.03]
[1752923117118,3.59073332,177.61,177.6,0.71]
[1752923117737,3.59073332,177.61,177.6,0.03]
[1752923119356,3.59073332,177.61,177.6,0.71]
[1752923119525,0.3,177.66,177.6,0.71]
[1752923119719,3.59073332,177.62,177.61,39.06]
[1752923119924,3.59073332,177.63,177.61,126.42299273]
[1752923120160,3.59073332,177.63,177.62,0.68]
[1752923121947,3.59073332,177.64,177.62,0.68]
[1752923122250,3.59073332,177.64,177.63,39.06]
[1752923122453,3.59073332,177.64,177.63,39.74]
[1752923123332,5.68777871,177.69,177.63,39.74]
[1752923123639,3.59073332,177.65,177.64,0.68]
[1752923124148,3.59073332,177.66,177.64,0.68]
[1752923124340,3.59073332,177.66,177.65,39.06]
[1752923124649,3.59073332,177.66,177.65,39.74]
[1752923125240,3.59073332,177.67,177.65,39.74]
[1752923125441,3.59073332,177.67,177.66,0.68]
[1752923127553,9.51919359,177.67,177.65,39.06]
[1752923127725,3.59073332,177.66,177.65,39.06]
[1752923130832,9.51946235,177.66,177.65,39.06]
[1752923131365,9.21946235,177.66,177.64,26.0]
[1752923131556,3.59073332,177.65,177.64,26.0]
[1752923131864,3.59073332,177.65,177.64,112.68299273]
[1752923132365,5.6281861,177.68,177.64,113.40299273]
[1752923132539,3.59073332,177.66,177.65,39.78]
[1752923136863,3.59073332,177.66,177.65,126.46299273]
[1752923138059,3.59073332,177.66,177.65,125.74299273]
[1752923140164,3.59073332,177.66,177.64,26.0]
[1752923140463,0.06,177.69,177.64,26.0]
[1752923140464,3.59073332,177.65,177.64,26.0]
[1752923141144,5.62847252,177.67,177.64,26.72]
[1752923141346,3.59073332,177.65,177.64,26.0]
[1752923141554,3.59073332,177.65,177.64,65.28]
[1752923141969,3.59073332,177.65,177.64,66.0]
[1752923144163,3.59073332,177.65,177.64,65.28]
[1752923144870,9.51977919,177.65,177.6,0.75]
[1752923145066,5.92904587,177.65,177.61,39.26]
[1752923145267,3.59073332,177.62,177.61,39.98]
[1752923145564,5.62904587,177.65,177.61,39.98]
[1752923145870,3.59073332,177.62,177.61,39.26]
[1752923146238,3.59073332,177.62,177.61,39.98]
[1752923147168,3.59073332,177.64,177.61,39.98]
[1752923147352,3.59073332,177.64,177.62,0.72]
[1752923147677,3.59073332,177.65,177.63,39.26]
[1752923147847,3.59073332,177.65,177.64,0.72]
[1752923148042,3.59073332,177.66,177.64,87.40299273]
[1752923148243,5.62843077,177.67,177.65,39.26]
[1752923148464,3.59073332,177.66,177.65,125.94299273]
[1752923149572,3.59073332,177.66,177.65,86.68299273]
[1752923149777,7.48146664,177.66,177.65,86.68299273]
[1752923149972,7.48146664,177.66,177.61,87.43299273]
[1752923150276,5.92904587,177.65,177.62,39.26]
[1752923151181,5.92841059,177.68,177.63,0.72]
[1752923151370,3.59073332,177.64,177.63,0.72]
[1752923151684,3.59073332,177.64,177.63,39.26]
[1752923152183,3.59073332,177.64,177.63,39.98]
[1752923153264,3.59073332,177.64,177.63,45.604]
[1752923153569,3.59073332,177.64,177.63,39.98]
[1752923153773,3.59073332,177.65,177.63,39.98]
[1752923153982,3.59073332,177.65,177.63,39.26]
[1752923154185,3.59073332,177.65,177.64,0.72]
[1752923154682,3.59073332,177.65,177.64,87.40299273]
[1752923154888,3.59073332,177.66,177.64,87.40299273]
[1752923155075,3.59073332,177.66,177.65,40.06]
[1752923155265,3.59073332,177.66,177.65,126.74299273]
[1752923159486,3.59073332,177.66,177.65,126.02299273]
[1752923159685,9.21946235,177.66,177.65,86.68299273]
[1752923160600,9.21946235,177.66,177.64,39.32]
[1752923160890,3.59073332,177.65,177.64,39.32]
[1752923161600,3.59073332,177.65,177.64,40.04]
[1752923162674,5.62850428,177.67,177.64,40.04]
[1752923162878,5.62809545,177.68,177.65,0.72]
[1752923163193,3.59073332,177.66,177.65,0.72]
[1752923163395,3.59073332,177.66,177.64,39.32]
[1752923163573,3.59073332,177.65,177.64,40.04]
[1752923164201,5.62809545,177.68,177.64,40.04]
[1752923164403,3.59073332,177.65,177.64,40.04]
[1752923166495,3.59073332,177.65,177.64,126.72299273]
[1752923167888,3.59073332,177.65,177.64,126.00299273]
[1752923170301,3.59073332,177.65,177.64,126.72299273]
[1752923171404,3.65073332,177.65,177.64,126.72299273]
[1752923174619,0.06,177.65,177.64,126.72299273]
[1752923174909,3.65073332,177.65,177.64,126.72299273]
[1752923177885,0.06,177.65,177.64,132.34699273]
[1752923178504,3.65073332,177.65,177.64,132.34699273]
[1752923179318,0.06,177.65,177.64,132.34699273]
[1752923179505,3.65073332,177.65,177.64,132.34699273]
[1752923181795,3.65073332,177.65,177.64,126.72299273]
[1752923182814,0.06,177.65,177.64,132.34699273]
[1752923183121,3.65073332,177.65,177.64,132.34699273]
[1752923183422,3.65073332,177.65,177.64,126.72299273]
[1752923184817,3.65073332,177.65,177.64,126.00299273]
[1752923187109,3.65073332,177.65,177.64,126.66299273]
[1752923190415,3.65073332,177.65,177.64,132.28699273]
[1752923191129,3.65073332,177.65,177.64,166.04699273]
[1752923194830,0.06,177.65,177.64,186.42299273]
[1752923195608,0.06,177.65,177.64,160.42299273]
[1752923195931,0.06,177.65,177.64,166.04699273]
[1752923198338,0.06,177.65,177.64,160.42299273]
[1752923198733,3.65073332,177.65,177.64,160.42299273]
[1752923200439,0.06,177.65,177.64,160.42299273]
[1752923200639,0.06,177.65,177.64,162.08699273]
[1752923203745,0.06,177.65,177.64,167.71099273]
[1752923204419,0.06,177.65,177.64,162.08699273]
[1752923209743,0.06,177.65,177.64,178.8716767]
[1752923210729,0.06,177.65,177.64,181.16941845]
[1752923213854,2.35774175,177.69,177.68,26.0]
[1752923214147,2.35774175,177.69,177.68,65.14]
[1752923214521,2.35774175,177.69,177.68,65.8]
[1752923215047,0.06,177.69,177.68,65.8]
[1752923215554,2.35774175,177.69,177.68,65.8]
[1752923215932,0.06,177.69,177.68,65.8]
[1752923216648,2.35774175,177.69,177.68,65.8]
[1752923217632,0.06,177.69,177.68,65.8]
[1752923218435,0.06,177.69,177.68,99.56]
[1752923219056,2.29774175,177.71,177.69,120.32299273]
[1752923219380,0.06,177.73,177.69,120.32299273]
[1752923219381,0.06,177.73,177.7,40.4927462]
[1752923219562,0.06,177.73,177.72,26.0]
[1752923219731,2.35774175,177.73,177.72,65.26]
[1752923219931,2.35774175,177.73,177.72,65.95]
[1752923220454,2.35774175,177.73,177.72,152.51299273]
[1752923221829,0.06,177.73,177.72,152.51299273]
[1752923222332,2.35774175,177.73,177.72,152.51299273]
[1752923223142,2.35774175,177.73,177.72,151.82299273]
[1752923223740,2.35774175,177.73,177.72,151.80299273]
[1752923224649,7.98425387,177.73,177.72,112.56299273]
[1752923224958,8.28425387,177.73,177.72,151.80299273]
[1752923225343,8.28425387,177.73,177.72,86.56299273]
[1752923225764,8.28425387,177.73,177.71,39.22]
[1752923225965,2.59774175,177.72,177.71,39.22]
[1752923226165,8.22457046,177.72,177.71,39.22]
[1752923227166,7.92457046,177.72,177.71,39.22]
[1752923227769,8.22457046,177.72,177.71,39.22]
[1752923228679,7.92457046,177.72,177.71,39.22]
[1752923229548,2.29774175,177.72,177.71,126.47299273]
[1752923230183,0.06,177.73,177.71,126.47299273]
[1752923230359,2.29774175,177.72,177.71,160.23299273]
[1752923230944,3.58912148,177.72,177.71,120.32299273]
[1752923231144,3.58912148,177.72,177.71,159.54299273]
[1752923232094,5.68652999,177.73,177.71,159.54299273]
[1752923232261,3.58912148,177.72,177.71,159.54299273]
[1752923234694,9.21595019,177.72,177.71,159.54299273]
[1752923234895,5.62682871,177.72,177.71,159.54299273]
[1752923235061,9.21595019,177.72,177.71,159.54299273]
[1752923238168,9.21595019,177.72,177.71,120.32299273]
[1752923238366,9.51595019,177.72,177.71,86.56299273]
[1752923238582,23.58302198,177.72,177.69,39.22]
[1752923238767,3.58912148,177.7,177.68,159.54299273]
[1752923238966,3.58912148,177.69,177.68,160.23299273]
[1752923239185,19.6939005,177.72,177.68,160.23299273]
[1752923239490,3.58912148,177.69,177.68,159.54299273]
[1752923240201,3.58912148,177.69,177.68,160.23299273]
[1752923240507,3.58912148,177.69,177.68,165.85699273]
[1752923242417,3.58912148,177.69,177.68,159.54299273]
[1752923242418,9.21690019,177.69,177.68,159.54299273]
[1752923243814,9.21690019,177.69,177.68,120.32299273]
[1752923244028,9.51690019,177.69,177.68,86.56299273]
[1752923244313,23.58634697,177.69,177.65,125.83299273]
[1752923244511,7.17824296,177.66,177.65,86.59299273]
[1752923244802,7.47824296,177.66,177.65,86.59299273]
[1752923245011,3.58912148,177.66,177.65,86.59299273]
[1752923245695,3.58912148,177.66,177.65,0.03]
[1752923245898,9.21785051,177.66,177.65,0.03]
[1752923246093,13.10697199,177.66,177.65,0.03]
[1752923246710,12.80697199,177.66,177.65,0.03]
[1752923248300,9.21785051,177.66,177.65,0.03]
[1752923248505,12.80697199,177.66,177.65,0.03]
[1752923248705,9.21785051,177.66,177.65,0.03]
[1752923248890,12.80697199,177.66,177.65,0.03]
[1752923249901,13.10697199,177.66,177.65,0.03]
[1752923250500,12.80697199,177.66,177.65,0.03]
[1752923250802,13.10697199,177.66,177.65,0.03]
[1752923251004,17.42599503,177.66,177.65,0.03]
[1752923252980,13.11476991,177.66,177.65,0.03]
[1752923262198,12.81476991,177.66,177.65,0.03]
[1752923262718,13.11476991,177.66,177.65,0.03]
[1752923264113,12.81476991,177.66,177.65,0.03]